Cogmind - Beta 13 @@@ ROGUE MODE // 2024.04.29 @ 18:04:51 Player: osman sinnoks Result: Self-destructed Performance ------------- Evolutions (1) 500 Regions Visited (3) 600 Robots Destroyed (19) 95 Value Destroyed (221) 221 Prototype IDs (1) 20 Alien Tech Used (0) 0 Bonus (0) 0 TOTAL SCORE: 1436 Bonus ------- None Cogmind --------- Core Integrity 400/400 Matter 260/300 Energy 198/250 System Corruption 0% Temperature Cool (0) Movement Flying (28) Location -9/Materials Parts ------- > --- POWER (1) -------- Ion Engine > --- PROPULSION (4) --- Flight Unit Flight Unit VTOL Module VTOL Module > --- UTILITY (2) ------ Seismic Detector Improved Light Armor Plating > --- WEAPON (2) ------- EM Pulse Gun Shock Rifle > --- INVENTORY (5) ---- Improved Trap Extractor (0/6) Small Laser Grenade Launcher Peak State ------------ > --- POWER ------------ Ion Engine > --- PROPULSION ------- Flight Unit Flight Unit VTOL Module VTOL Module > --- UTILITY ---------- Seismic Detector Improved Trap Extractor > --- WEAPON ----------- EM Pulse Gun Shock Rifle > --- INVENTORY -------- Improved Light Armor Plating Small Laser Grenade Launcher [Rating: 16] Favorites ----------- Power Ion Engine Engine Ion Engine Propulsion Flight Unit Leg Aluminum Leg Flight Unit Flight Unit Utility Seismic Detector Device Seismic Detector Protection Improved Light Armor Plating Weapon EM Pulse Gun Energy Gun EM Pulse Gun Build | -11 -10 -10 -9 ------- Run | Yrd Mat Min Mat Slots Evolved 2 | . . . 2 Power . | . . . . Propulsion 2 | . . . 2 Utility . | . . . . Weapon . | . . . . Parts Attached 22 | 6 3 10 3 Power 4 | 1 1 2 . Engine 4 | 1 1 2 . Core . | . . . . Reactor . | . . . . Propulsion 10 | 2 2 4 2 Treads . | . . . . Leg 2 | 2 . . . Wheel . | . . . . Hover . | . . . . Flight 8 | . 2 4 2 Utility 4 | 1 . 2 1 Device 3 | 1 . 2 . Storage . | . . . . Processor . | . . . . Hackware . | . . . . Protection 1 | . . . 1 Artifact . | . . . . Weapon 4 | 2 . 2 . Energy Gun 4 | 2 . 2 . Energy Cannon . | . . . . Ballistic Gun . | . . . . Ballistic Cannon . | . . . . Launcher . | . . . . Special Weapon . | . . . . Impact Weapon . | . . . . Slashing Weapon . | . . . . Piercing Weapon . | . . . . Special Melee Weapon . | . . . . Unidentified Prototypes 1 | . . 1 . Parts Lost 2 | . . 2 . Power 1 | . . 1 . Propulsion . | . . . . Utility . | . . . . Weapon 1 | . . 1 . Highest Loss Streak 1 | . . 1 . To Critical Strikes . | . . . . Average Slot Usage (%) 95 | . 85 98 100 Engine 13 | . 14 14 11 Leg 6 | . 23 . . Flight 22 | . 4 28 44 Device 23 | . 14 26 11 Energy Gun 27 | . 28 27 22 Naked Turns . | . . . . Heaviest Build 14 | 10 10 14 14 Greatest Support 20 | 20 20 8 16 Greatest Overweight (x) 1 | 1 . 1 . Average Overweight (x) . | . . . . Largest Inventory Capacity 5 | 5 5 5 5 Average Capacity 5 | 5 5 5 5 Most Carried 5 | 3 5 5 4 Average Carried 3 | 1 2 4 3 Final Capacity 5 | 5 5 5 5 Final Carried 5 | 2 5 5 3 Class Distribution -------------------- 56% | Mutant 38% | Scavenger-Mutant 5% | Sprinter Dominant Class ---------------- Mutant | -10/Materials Scavenger-Mutant | -10/Mines Scavenger-Mutant | -9/Materials Resources | -11 -10 -10 -9 ----------- Run | Yrd Mat Min Mat Matter Collected 375 | 260 28 87 . Remotely . | . . . . Salvage Created 436 | 169 127 140 . Parts 40 | 11 12 17 . Haulers Intercepted . | . . . . Recyclers Shooed . | . . . . Parts Field Recycled . | . . . . Retrieved Matter . | . . . . Parts Self-Destructed . | . . . . Prevented . | . . . . Kills | -11 -10 -10 -9 ------- Run | Yrd Mat Min Mat Combat Hostiles Destroyed 10 | . 1 9 . Guns 10 | . 1 9 . Classes Destroyed 7 | 2 4 1 . Builder 1 | . 1 . . Tunneler 4 | 4 . . . Recycler 1 | 1 . . . Operator 1 | . 1 . . Watcher 2 | . 2 . . Swarmer 9 | . . 9 . Grunt 1 | . 1 . . Best Kill Streak 6 | 4 3 6 . Combat Bots Only 4 | . 1 4 . Max Kills in Single Turn 1 | 1 1 1 . Gunslinging . | . . . . Exploded . | . . . . Melee . | . . . . Uniques/NPCs Destroyed . | . . . . Combat | -11 -10 -10 -9 -------- Run | Yrd Mat Min Mat Hostile Shots Fired 39 | . 11 28 . Missed 11 | . 2 9 . Damage Taken 344 | 36 118 190 . Core 96 | 18 54 24 . Absorbed by Shields . | . . . . Core Remaining (%) 76 | 92 . 61 . Volleys Fired 42 | 11 13 18 . Largest 2 | 2 2 2 . Hottest 90 | 90 90 90 . Shots Fired 78 | 22 25 31 . Gun 78 | 22 25 31 . Cannon . | . . . . Launcher . | . . . . Special . | . . . . Kinetic . | . . . . Thermal 38 | 11 12 15 . Explosive . | . . . . Electromagnetic 40 | 11 13 16 . Robot Hit Streak 10 | 7 8 10 . Robot Miss Streak 3 | 1 3 3 . Penetration Max . | . . . . Secondary Targets 1 | . 1 . . Max Gunslinging Chain 1 | . 1 . . Shots Hit Robots 50 | 17 17 16 . Core Hits 23 | 6 8 9 . Critical Kills . | . . . . Critical Parts Destroyed . | . . . . Critical Strikes 3 | . 1 2 . Burn 3 | . 1 2 . Melee Attacks . | . . . . Impact . | . . . . Slashing . | . . . . Piercing . | . . . . Sneak Attacks . | . . . . Combat Hostiles . | . . . . Follow-up Attacks . | . . . . Damage Inflicted 806 | 308 274 224 . Guns 721 | 223 274 224 . Cannons . | . . . . Explosions 85 | 85 . . . Melee . | . . . . Ramming . | . . . . Kinetic . | . . . . Thermal 513 | 211 137 165 . Explosive . | . . . . Electromagnetic 293 | 97 137 59 . Impact . | . . . . Slashing . | . . . . Piercing . | . . . . Highest Corruption . | . . . . Average Corruption . | . . . . Corruption Purged . | . . . . Corruption Blocked . | . . . . Overload Shots . | . . . . Overflow Damage 1 | 1 . . . Projectiles . | . . . . Explosions 1 | 1 . . . Melee . | . . . . Knockbacks . | . . . . Impact . | . . . . Kinetic . | . . . . Secondary . | . . . . Self-Inflicted Damage 37 | 37 . . . Shots 1 | 1 . . . Rammed . | . . . . Targets Rammed . | . . . . Kicked . | . . . . Crushed . | . . . . Highest Temperature 328 | 180 328 132 . Average Temperature 79 | 86 100 63 . Received Heat Transfer 72 | . 72 . . Siege Activations . | . . . . Robots Corrupted . | . . . . Combat Hostiles . | . . . . Parts Fried . | . . . . Impact Corruptions . | . . . . Robots Melted . | . . . . Combat Hostiles . | . . . . Parts Melted 3 | 1 2 . . Heat Transferred 1630 | 520 481 629 . Parts Sabotaged . | . . . . Parts Stolen . | . . . . Parts Stripped . | . . . . Power Chain Reactions 2 | 2 . . . Alert | -11 -10 -10 -9 ------- Run | Yrd Mat Min Mat Peak Influence 229 | 25 90 229 35 Initial 34 | . 16 34 20 Average 85 | 11 43 113 27 Maximum Alert Level 1 | . . 1 . Low Security (%) 97 | 100 100 95 100 Level 1 2 | . . 4 . Level 2 . | . . . . Level 3 . | . . . . Level 4 . | . . . . Level 5 . | . . . . High Security . | . . . . Max Security . | . . . . Squads Dispatched 1 | . 1 . . Investigation . | . . . . Extermination . | . . . . Reinforcement 1 | . 1 . . Assault . | . . . . Garrison . | . . . . Intercept . | . . . . Searches Triggered . | . . . . Construction Impeded . | . . . . Haulers Reinforced . | . . . . Active Scanning Responses . | . . . . Cargo Convoy Interrupts . | . . . . Stealth | -11 -10 -10 -9 --------- Run | Yrd Mat Min Mat Distress Signals . | . . . . Communications Jammed . | . . . . Distress Signals . | . . . . Times Spotted 13 | . 4 8 1 Peak Tracking Total 3 | . 2 3 1 Tactical Retreats . | . . . . Traps | -11 -10 -10 -9 ------- Run | Yrd Mat Min Mat Traps Triggered 1 | . . 1 . Indirectly . | . . . . Trap Hack Attempts . | . . . . Triggered . | . . . . Disarmed . | . . . . Reprogrammed . | . . . . Reused . | . . . . Traps Extracted . | . . . . Installed . | . . . . Triggered . | . . . . Machines | -11 -10 -10 -9 ---------- Run | Yrd Mat Min Mat Machines Disabled 1 | . . 1 . Max in Single Turn 1 | . . 1 . Machines Repaired . | . . . . Machines Dismantled . | . . . . Machines Sabotaged . | . . . . Overloaded Fab Kills . | . . . . Hacking | -11 -10 -10 -9 --------- Run | Yrd Mat Min Mat Machines Accessed 2 | . 1 1 . Terminals . | . . . . Fabricators . | . . . . Repair Stations . | . . . . Recycling Units 1 | . 1 . . Scanalyzers . | . . . . Garrison Access . | . . . . Total Hacks 2 | . 1 1 . Successful 1 | . . 1 . Failed 1 | . 1 . . Catastrophic . | . . . . Database Lockouts . | . . . . Manual . | . . . . Terminals . | . . . . Fabricators . | . . . . Repair Stations . | . . . . Recycling Units 1 | . 1 . . Scanalyzers . | . . . . Garrison Access . | . . . . Terminal Hacks 1 | . . 1 . Open Door 1 | . . 1 . Fabricator Hacks . | . . . . Repair Station Hacks . | . . . . Recycling Unit Hacks . | . . . . Scanalyzer . | . . . . Garrison Access Hacks . | . . . . Unauthorized Hacks . | . . . . Terminals . | . . . . Fabricators . | . . . . Repair Stations . | . . . . Recycling Units . | . . . . Scanalyzers . | . . . . Garrison Access . | . . . . Data Cores Recovered . | . . . . Used . | . . . . Hacking Detections 1 | . 1 . . Full Trace Events . | . . . . Feedback Events . | . . . . Feedback Blocked . | . . . . Robot Schematics Acquired . | . . . . Robots Built . | . . . . Authchips . | . . . . Time . | . . . . Total Robot Build Rating . | . . . . Part Schematics Acquired . | . . . . Parts Built . | . . . . Authchips . | . . . . Time . | . . . . Total Part Build Rating . | . . . . Parts Repaired . | . . . . Time . | . . . . Parts Recycled . | . . . . Recycled Matter . | . . . . Retrieved Matter . | . . . . Retrieved Components . | . . . . Parts Scanalyzed . | . . . . Part Schematics Acquired . | . . . . Parts Damaged . | . . . . Bothacking | -11 -10 -10 -9 ------------ Run | Yrd Mat Min Mat Used RIF Installer . | . . . . Robots Hacked . | . . . . Non-combat . | . . . . Combat . | . . . . Robot Hacks Applied . | . . . . Relay Couplers Released . | . . . . Fabnet Peak Effective % . | . . . . Robots Rewired . | . . . . Allies Hacked . | . . . . Hacks Repelled . | . . . . Allies | -11 -10 -10 -9 -------- Run | Yrd Mat Min Mat Total Allies . | . . . . Largest Group . | . . . . Highest-Rated Group . | . . . . Highest-Rated Ally . | . . . . Total Orders . | . . . . Ally Attacks . | . . . . Total Damage . | . . . . Kills . | . . . . Allies Corrupted . | . . . . Allies Melted . | . . . . Intel | -11 -10 -10 -9 ------- Run | Yrd Mat Min Mat Robot Analysis Total . | . . . . Derelict Logs Recovered 1 | . . 1 . Drone Launches . | . . . . Drone Recoveries . | . . . . Exploration | -11 -10 -10 -9 ------------- Run | Yrd Mat Min Mat Turns Passed 1134 | 112 263 738 21 Spaces Moved 873 | 59 127 628 59 Core 10 | 10 . . . Treads . | . . . . Legs 145 | 49 96 . . Wheels . | . . . . Hover . | . . . . Flight 718 | . 31 628 59 Fastest Speed 28 | 50 32 32 28 Average Speed 100 | 111 98 106 28 Slowest Speed 120 | 120 120 120 28 Overloaded Moves . | . . . . Propulsion Burnouts . | . . . . Robots Hopped 6 | . . 6 . Cave-ins Triggered . | . . . . Exploration Rate (%) 32 | 3 28 94 6 Regions Visited 3 Branch Regions 1 Pre-discovered Areas . | . . . . Known Exits Taken . | . . . . Unknown Exits Taken 3 | 1 1 1 . Scrap Searched 2 | . . 2 . Spaces Dug . | . . . . Terrain Destroyed 5 | 5 . . . Melee . | . . . . Projectile . | . . . . AOE 5 | 5 . . . Terrain Rammed . | . . . . Walls Destroyed . | . . . . Machines Disabled . | . . . . Actions | -11 -10 -10 -9 --------- Run | Yrd Mat Min Mat Total 1041 | 83 238 658 62 Wait 89 | . 89 . . Move 858 | 58 126 615 59 Hop 6 | . . 6 . Pick Up 16 | 8 5 3 . Fast Attach 4 | . . 4 . Attach 11 | 6 . 3 2 Detach . | . . . . Swap 7 | . 3 3 1 Drop 8 | . 2 6 . Fire 42 | 11 13 18 . Melee . | . . . . Ram . | . . . . Kick . | . . . . Crush . | . . . . Escape Stasis . | . . . . Rewire . | . . . . Trap . | . . . . Miscellaneous . | . . . . Route ------- -11/Scrapyard -10/Materials (discovered 2 exits: [*Mat] / *Min) -10/Mines (discovered 2 exits: [*Mat x2]) -9/Materials History --------- Turn | Location | Event 2 | -11/Scrapyard | Discovered new exit (range 16) 113 | -11/Scrapyard | Entered Materials 304 | -10/Materials | Build established: Mutant 343 | -10/Materials | Discovered new exit (range 5) 348 | -10/Materials | Discovered new exit (range 15) 376 | -10/Materials | Entered Mines 447 | -10/Mines | Discovered new exit (range 6) 447 | -10/Mines | Found a damaged Exp. Sensor Array with a note attached 448 | -10/Mines | Found Prototype Device 449 | -10/Mines | Identified Exp. Sensor Array 679 | -10/Mines | Build established: Scavenger-Mutant 706 | -10/Mines | Discovered new exit (range 7) 770 | -10/Mines | Learned Materials garrison access intel 804 | -10/Mines | Met a Derelict who couldn't figure out how to use a Trap Extractor 1114 | -10/Mines | Entered Materials 1114 | -9/Materials | Evolved 2 slots: Propulsion x2 1135 | -9/Materials | Self-destructed Last Messages --------------- Tosses Imp. Trap Extractor to the ground. Dropped Exp. Sensor Array. Acquired Imp. Trap Extractor. Triggered Explosive Trap. An explosion rips through the floor. Lgt. Ion Engine destroyed. Machine disabled. Acquired Imp. Light Armor Plating. Dropped Med. Laser. The unstable cave ceiling collapses. Acquired Shock Rifle. The unstable cave ceiling collapses. Acquired 25 matter. S-10 Pest destroyed. K-01 Serf collects debris. PARAMETERS=PROPULSION+2 LOCATION=UNKNOWN GOAL=ESCAPE QB-3MP(g): "What?! This place again? I'm sticking with you." Map ----- +----------------------------------------------------+ | ????????????????????????? ???????????????????????? | | ????????????????????????? ???????????????????????? | | ????????????????????????? ???????????????????????? | | ????????????????????????? ???????????????????????? | | ????????????????????????? ???????????????????????? | | ????????????????????????? ???????????????????????? | | ????????????????????????# #??????????????????????? | | ????????????????????????# #??????????????????????? | | ????????????????????????# #??????????????????????? | | ????????????????????????# #??????????????????????? | | ????????????????????????# #?????????????????????? | | ????????????????????????# #??????????#######???? | | ????????????????????????# #??????????# #### | | ??????????????????# ##### ############ | | ??????????????????# | | ??????????????????####### ############ ! | | ????????????????????????# #??????????# ####### | | ????????????????????????# #??????????## ##?????? | | ????????????????????????# #???????????# #??????? | | ????????????????????????# #???????????# #??????? | | ????????????????????????# #???????????# #??????? | | ????????????????????????# #???????????# #??????? | | ????????????????????????# #???????????# ######## | | ????????????????????????# #####???????# | | ????????????????????????# ]]######### | | ????????????????????????#@ ]]## # ######## | | ????????????????????????# !!## # #??????? | | ????????????????????????# !!## + #??????? | | ???????????????????????? **## # #??????? | | ???????????????????????? **## # #??????? | | ????????????????????????#+###### # #??????? | | ???????????????????????????????############??????? | | ?????????????????????????????????????????????????? | | ?????????????????????????????????????????????????? | | ?????????????????????????????????????????????????? | | ?????????????????????????????????????????????????? | | ?????????????????????????????????????????????????? | | ?????????????????????????????????????????????????? | | ?????????????????????????????????????????????????? | | ?????????????????????????????????????????????????? | | ?????????????????????????????????????????????????? | | ?????????????????????????????????????????????????? | | ?????????????????????????????????????????????????? | | | | | | | | | | | | | | | +----------------------------------------------------+ Best States ------------- Heat Dissipation 28 Energy Generation 10 Energy Capacity 250 Matter Stores 300 Matter Capacity 300 Sight Range 16 Robot Scan Range 20 Terrain Scan Density 10 Armor Coverage 150 Evasion (%) 64 Trap Extractor Capacity 6 Item Schematics ----------------- None Robot Schematics ------------------ None Fabricated ------------ Nothing Alien Tech Used ----------------- None Achievements -------------- None Challenges ------------ None Game ------ Seed MyomerHeartStick Manual? 0 Play Time 00:12:57 Cumulative 11.9 hours Start 2024.04.28 @ 19:30:48 End 2024.04.29 @ 18:04:51 Sessions 3 Manual Loads 0 Difficulty Rogue Special Mode None Game No. 22 Rogue 22 Adventurer 0 Explorer 0 Win Type - Total 0 Types 0/0/0/0/0/0/0/0/0 Lore% 19 Gallery% 20 Achievement% 17 Wizard Run 0 Options --------- Layout 1 ASCII 0 Keyboard 0 Movement Mouse Keybinds 0 Fullscreen 1 Font 24/Smallcaps Map View 50x40 Zoom Use 0% Tactical HUD 0 Map Filters NONE Filters NONE Steam 1 RUN: 4e45abca-f379-45a4-a80b-9defe84c34ec